fUSD/lending_fUSD_20250826
["ID","MTS","AMOUNT","RATE_DAILY","PERIOD"]
[381478702,1756230669252,-400.0,0.00027397,5]
[381478703,1756230669261,-817.0,0.00027397,5]
[381478704,1756230669270,-425.8796337,0.00027397,5]
[381478705,1756230669280,-400.0,0.00027397,5]
[381478706,1756230669289,-400.0,0.00027397,5]
[381478707,1756230669298,-1089.76,0.00027397,5]
[381478708,1756230669308,-151.0,0.00027397,7]
[381478709,1756230669318,-151.0,0.00027397,7]
[381478710,1756230669327,-1276.92,0.00027397,5]
[381478711,1756230669338,-243.4786,0.00027397,7]
[381478712,1756230669348,-674.18,0.00027397,5]
[381478713,1756230669358,-400.0,0.00027397,5]
[381478714,1756230669368,-1533.69,0.00027397,5]
[381478715,1756230669378,-400.0,0.00027397,5]
[381478716,1756230669389,-400.0,0.00027397,5]
[381478717,1756230669398,-400.0,0.00027397,5]
[381478718,1756230669408,-173.559572,0.00027397,5]
[381478719,1756230669418,-676.42,0.00027397,5]
[381478720,1756230669432,-400.0,0.00027397,5]
[381478721,1756230669443,-151.0,0.00027397,7]
[381478722,1756230669452,-400.0,0.00027397,5]
[381478723,1756230669461,-1531.09,0.00027397,5]
[381478724,1756230669471,-151.0,0.00027397,7]
[381478725,1756230669480,-622.731684,0.00027397,5]
[381478726,1756230669490,-1459.11,0.00027397,5]
[381478727,1756230669499,-151.0,0.00027397,7]
[381478728,1756230669508,-400.0,0.00027397,5]
[381478729,1756230669518,-558.77,0.00027397,5]
[381478730,1756230669527,-400.0,0.00027397,5]
[381478731,1756230669536,-627.47,0.00027397,5]
[381478732,1756230669545,-400.0,0.00027397,5]
[381478733,1756230669555,-579.77,0.00027397,5]
[381478734,1756230669565,-1440.73,0.00027397,5]
[381478735,1756230669574,-400.0,0.00027397,5]
[381478736,1756230669583,-1242.42,0.00027397,5]
[381478737,1756230669592,-1425.56941,0.00027397,5]
[381478738,1756230669601,-400.0,0.00027397,5]
[381478739,1756230669610,-1203.37,0.00027397,5]
[381478740,1756230669619,-151.0,0.00027397,7]
[381478741,1756230669628,-746.88,0.00027397,5]
[381478742,1756230669639,-400.0,0.00027397,5]
[381478743,1756230669651,-400.0,0.00027397,5]
[381478744,1756230669661,-400.0,0.00027397,5]
[381478745,1756230669670,-1223.38,0.00027397,5]
[381478746,1756230669682,-153.414316,0.00027397,5]
[381478747,1756230669691,-151.0,0.00027397,7]
[381478748,1756230669699,-400.0,0.00027397,5]
[381478749,1756230669709,-1148.42,0.00027397,5]
[381478750,1756230669719,-400.0,0.00027397,5]
[381478751,1756230669728,-400.0,0.00027397,5]
[381478752,1756230669737,-158.024835,0.00027397,5]
[381478753,1756230669746,-400.0,0.00027397,5]
[381478754,1756230669755,-1932.27,0.00027397,5]
[381478755,1756230669764,-771.37,0.00027397,5]
[381478756,1756230669773,-400.0,0.00027397,5]
[381478757,1756230669782,-400.0,0.00027397,5]
[381478758,1756230669791,-671.24,0.00027397,5]
[381478759,1756230669800,-400.0,0.00027397,5]
[381478760,1756230669809,-400.0,0.00027397,5]
[381478761,1756230669819,-400.0,0.00027397,5]
[381478762,1756230669828,-400.0,0.00027397,5]
[381478763,1756230669837,-669.66,0.00027397,5]
[381478764,1756230669846,-151.0,0.00027397,7]
[381478765,1756230669856,-400.0,0.00027397,5]
[381478766,1756230669865,-151.0,0.00027397,7]
[381478767,1756230669875,-1913.94,0.00027397,5]
[381478768,1756230669885,-400.0,0.00027397,5]
[381478769,1756230669895,-166.241984,0.00027397,5]
[381478770,1756230669904,-151.0,0.00027397,7]
[381478771,1756230669914,-947.84,0.00027397,5]
[381478772,1756230669925,-739.95,0.00027397,5]
[381478773,1756230669934,-400.0,0.00027397,5]
[381478774,1756230669944,-400.0,0.00027397,5]
[381478775,1756230669953,-400.0,0.00027397,5]
[381478776,1756230669963,-400.0,0.00027397,5]
[381478777,1756230669973,-400.0,0.00027397,5]
[381478778,1756230669984,-691.88,0.00027397,5]
[381478779,1756230669994,-400.0,0.00027397,5]
[381478780,1756230670003,-939.77,0.00027397,5]
[381478781,1756230670012,-400.0,0.00027397,5]
[381478782,1756230670021,-400.0,0.00027397,5]
[381478783,1756230670030,-400.64929256,0.00027397,5]
[381478784,1756230670039,-400.0,0.00027397,5]
[381478785,1756230670049,-616.51,0.00027397,5]
[381478786,1756230670059,-641.49,0.00027397,5]
[381478787,1756230670069,-400.0,0.00027397,5]
[381478788,1756230670078,-400.0,0.00027397,5]
[381478789,1756230670087,-1152.08,0.00027397,5]
[381478790,1756230670097,-400.0,0.00027397,5]
[381478791,1756230670106,-400.0,0.00027397,5]
[381478792,1756230670115,-638.75,0.00027397,5]
[381478793,1756230670125,-151.0,0.00027397,7]
[381478794,1756230670135,-559.5,0.00027397,5]
[381478795,1756230670144,-421.67,0.00027397,5]
[381478796,1756230670154,-500.0,0.00027397,5]
[381478797,1756230670164,-528.93,0.00027397,5]
[381478798,1756230670174,-400.0,0.00027397,5]
[381478799,1756230670183,-401.60483361,0.00027397,5]
[381478800,1756230670193,-1044.69,0.00027397,5]
[381478801,1756230670202,-400.0,0.00027397,5]
[381478802,1756230670211,-400.0,0.00027397,5]
[381478803,1756230670220,-599.16,0.00027397,5]
[381478804,1756230670229,-400.0,0.00027397,5]
[381478805,1756230670239,-605.74,0.00027397,5]
[381478806,1756230670248,-400.0,0.00027397,5]
[381478807,1756230670385,-400.0,0.00027397,5]
[381478808,1756230670394,-400.0,0.00027397,5]
[381478809,1756230670403,-500.0,0.00027397,5]
[381478810,1756230670412,-838.66,0.00027397,5]
[381478811,1756230670422,-400.0,0.00027397,5]
[381478812,1756230670431,-400.0,0.00027397,5]
[381478813,1756230670441,-400.0,0.00027397,5]
[381478814,1756230670450,-887.39,0.00027397,5]
[381478815,1756230670459,-655.13,0.00027397,5]
[381478816,1756230670468,-941.57,0.00027397,5]
[381478817,1756230670478,-471.57,0.00027397,5]
[381478818,1756230670487,-499.66,0.00027397,5]
[381478819,1756230670497,-400.0,0.00027397,5]
[381478820,1756230670506,-1079.39,0.00027397,5]
[381478821,1756230670515,-400.0,0.00027397,5]
[381478822,1756230670526,-400.0,0.00027397,5]
[381478823,1756230670535,-400.0,0.00027397,5]
[381478824,1756230670544,-890.980882,0.00027397,5]
[381478825,1756230670554,-400.0,0.00027397,5]
[381478826,1756230670563,-400.0,0.00027397,5]
[381478827,1756230670574,-151.0,0.00027397,7]
[381478828,1756230670585,-1594.17,0.00027397,5]
[381478829,1756230670596,-400.0,0.00027397,5]
[381478830,1756230670606,-1159.56,0.00027397,5]
[381478831,1756230670616,-500.0,0.00027397,2]
[381478832,1756230670625,-400.0,0.00027397,5]
[381478833,1756230670636,-892.37,0.00027397,5]
[381478834,1756230670650,-773.23,0.00027397,5]
[381478835,1756230670659,-1157.25,0.00027397,5]
[381478836,1756230670667,-400.15283415,0.00027397,5]
[381478837,1756230670677,-686.12,0.00027397,5]
[381478838,1756230670687,-671.81,0.00027397,5]
[381478839,1756230670695,-400.0,0.00027397,5]
[381478840,1756230670705,-400.0,0.00027397,5]
[381478841,1756230670714,-1000.25,0.00027397,5]
[381478842,1756230670724,-1270.92,0.00027397,5]
[381478843,1756230670733,-151.0,0.00027397,7]
[381478844,1756230670742,-400.0,0.00027397,5]
[381478845,1756230670751,-400.0,0.00027397,5]
[381478846,1756230670760,-400.0,0.00027397,5]
[381478847,1756230670769,-438.05,0.00027397,5]
[381478848,1756230670779,-641.35,0.00027397,5]
[381478849,1756230670789,-400.0,0.00027397,5]
[381478850,1756230670799,-547.19,0.00027397,5]
[381478851,1756230670810,-1790.82,0.00027397,5]
[381478852,1756230670819,-1052.08,0.00027397,5]
[381478853,1756230670829,-400.0,0.00027397,5]
[381478854,1756230670839,-400.0,0.00027397,5]
[381478855,1756230670850,-400.0,0.00027397,5]
[381478856,1756230670860,-554.83,0.00027397,5]
[381478857,1756230670869,-1943.28,0.00027397,5]
[381478858,1756230670880,-746.03,0.00027397,5]
[381478859,1756230670889,-151.0,0.00027397,7]
[381478860,1756230670899,-400.0,0.00027397,5]
[381478861,1756230670908,-400.0,0.00027397,5]
[381478862,1756230670918,-171.989765,0.00027397,7]
[381478863,1756230670928,-151.0,0.00027397,7]
[381478864,1756230670938,-218.70818,0.00027397,7]
[381478865,1756230670948,-171.989765,0.00027397,7]
[381478866,1756230670957,-151.0,0.00027397,7]
[381478867,1756230670967,-518.13,0.00027397,5]
[381478868,1756230670976,-400.0,0.00027397,5]
[381478869,1756230670986,-400.0,0.00027397,5]
[381478870,1756230670995,-500.0,0.00027397,5]
[381478871,1756230671005,-785.98,0.00027397,5]
[381478872,1756230671014,-400.0,0.00027397,5]
[381478873,1756230671023,-171.989765,0.00027397,7]
[381478874,1756230671032,-218.70818,0.00027397,7]
[381478875,1756230671041,-400.0,0.00027397,5]
[381478876,1756230671050,-993.89,0.00027397,5]
[381478877,1756230671059,-171.989769,0.00027397,7]
[381478878,1756230671068,-818.48,0.00027397,5]
[381478879,1756230671078,-400.0,0.00027397,5]
[381478880,1756230671088,-218.70818,0.00027397,7]
[381478881,1756230671096,-500.0,0.00027397,5]
[381478882,1756230671106,-1104.44,0.00027397,5]
[381478883,1756230671115,-1314.35,0.00027397,5]
[381478884,1756230671124,-218.70818,0.00027397,7]
[381478885,1756230671133,-400.0,0.00027397,5]
[381478886,1756230671142,-1147.4,0.00027397,5]
[381478887,1756230671153,-400.19676239,0.00027397,5]
[381478888,1756230671163,-400.0,0.00027397,5]
[381478889,1756230671172,-400.0,0.00027397,5]
[381478890,1756230671182,-400.0,0.00027397,5]
[381478891,1756230671191,-400.0,0.00027397,5]
[381478892,1756230671200,-151.0,0.00027397,7]
[381478893,1756230671210,-494.04,0.00027397,5]
[381478894,1756230671220,-762.17,0.00027397,5]
[381478895,1756230671229,-1207.12,0.00027397,5]
[381478896,1756230671238,-400.0,0.00027397,5]
[381478897,1756230671247,-803.64,0.00027397,5]
[381478898,1756230671256,-400.0,0.00027397,5]
[381478899,1756230671265,-479.74,0.00027397,5]
[381478900,1756230671274,-477.95854434,0.00027397,5]
[381478901,1756230671283,-1365.31,0.00027397,5]
[381478902,1756230671292,-577.41,0.00027397,5]
[381478903,1756230671301,-796.06,0.00027397,5]
[381478904,1756230671311,-596.98,0.00027397,5]
[381478905,1756230671319,-1449.758194,0.00027397,7]
[381478906,1756230671328,-649.76,0.00027397,5]
[381478907,1756230671337,-552.98179,0.00027397,7]
[381478908,1756230671346,-1449.758194,0.00027397,7]
[381478909,1756230671355,-400.0,0.00027397,5]
[381478910,1756230671364,-1449.758194,0.00027397,7]
[381478911,1756230671373,-400.0,0.00027397,5]
[381478912,1756230671382,-1449.758187,0.00027397,7]
[381478913,1756230671391,-400.0,0.00027397,5]
[381478914,1756230671400,-1461.95,0.00027397,5]
[381478915,1756230671411,-865.97,0.00027397,5]
[381478916,1756230671420,-679.44,0.00027397,5]
[381478917,1756230671431,-1811.76,0.00027397,5]
[381478918,1756230671439,-400.0,0.00027397,5]
[381478919,1756230671448,-400.0,0.00027397,5]
[381478920,1756230671457,-400.0,0.00027397,5]
[381478921,1756230671466,-552.98179,0.00027397,7]
[381478922,1756230671475,-1319.63,0.00027397,5]
[381478923,1756230671484,-552.98179,0.00027397,7]
[381478924,1756230671494,-400.0,0.00027397,5]
[381478925,1756230671504,-400.0,0.00027397,5]
[381478926,1756230671513,-439.96,0.00027397,5]
[381478927,1756230671522,-400.0,0.00027397,5]
[381478928,1756230671531,-151.0,0.00027397,7]
[381478929,1756230671540,-400.0,0.00027397,5]
[381478930,1756230671549,-1673.775936,0.00027397,7]
[381478931,1756230671558,-1057.17,0.00027397,5]
[381478932,1756230671567,-151.0,0.00027397,7]
[381478933,1756230671575,-400.0,0.00027397,5]
[381478934,1756230671587,-400.0,0.00027397,5]
[381478935,1756230671596,-1673.775936,0.00027397,7]
[381478936,1756230671606,-400.0,0.00027397,5]
[381478937,1756230671616,-736.79,0.00027397,5]
[381478938,1756230671625,-400.0,0.00027397,5]
[381478939,1756230671635,-747.22,0.00027397,5]
[381478940,1756230671649,-1451.65,0.00027397,5]
[381478941,1756230671659,-1673.775936,0.00027397,7]
[381478942,1756230671669,-1376.31,0.00027397,5]
[381478943,1756230671680,-1514.02,0.00027397,5]
[381478944,1756230671689,-449.86,0.00027397,5]
[381478945,1756230671698,-1673.775943,0.00027397,7]
[381478946,1756230671708,-1074.86,0.00027397,5]
[381478947,1756230671717,-552.981798,0.00027397,7]
[381478948,1756230671727,-595.097099,0.00027397,7]
[381478949,1756230671738,-794.3,0.00027397,5]
[381478950,1756230671746,-595.097099,0.00027397,7]
[381478951,1756230671755,-769.79,0.00027397,5]
[381478952,1756230671764,-500.0,0.00027397,5]
[381478953,1756230671773,-595.097099,0.00027397,7]
[381478954,1756230671783,-595.0971,0.00027397,7]
[381478955,1756230671793,-400.0,0.00027397,5]
[381478956,1756230671803,-400.0,0.00027397,5]
[381478957,1756230671814,-1162.07,0.00027397,5]
[381478958,1756230671823,-151.0,0.00027397,7]
[381478959,1756230671833,-934.37,0.00027397,5]
[381478960,1756230671843,-1986.93,0.00027397,5]
[381478961,1756230671852,-708.52,0.00027397,5]
[381478962,1756230671861,-1255.96,0.00027397,5]
[381478963,1756230671870,-540.578919,0.00027397,7]
[381478964,1756230671879,-151.0,0.00027397,7]
[381478965,1756230671888,-403.49875738,0.00027397,5]
[381478966,1756230671897,-540.578919,0.00027397,7]
[381478967,1756230671906,-1339.03,0.00027397,5]
[381478968,1756230671915,-1235.73,0.00027397,5]
[381478969,1756230671925,-400.0,0.00027397,5]
[381478970,1756230671934,-540.578919,0.00027397,7]
[381478971,1756230671943,-151.0,0.00027397,7]
[381478972,1756230671952,-400.0,0.00027397,5]
[381478973,1756230671961,-540.578925,0.00027397,7]
[381478974,1756230671971,-151.0,0.00027397,7]
[381478975,1756230671980,-826.32,0.00027397,5]
[381478976,1756230671989,-817.2,0.00027397,5]
[381478977,1756230671998,-400.49604735,0.00027397,5]
[381478978,1756230672009,-1322.4,0.00027397,5]
[381478979,1756230672018,-621.44,0.00027397,5]
[381478980,1756230672027,-400.0,0.00027397,5]
[381478981,1756230672037,-1563.34,0.00027397,5]
[381478982,1756230672046,-400.0,0.00027397,5]
[381478983,1756230672055,-1226.73,0.00027397,5]
[381478984,1756230672064,-400.0,0.00027397,5]
[381478985,1756230672073,-151.0,0.00027397,7]
[381478986,1756230672083,-386.09215617,0.00027397,5]
[381478987,1756230672092,-400.0,0.00027397,5]
[381478988,1756230672103,-567.37,0.00027397,5]
[381478989,1756230672112,-469.42,0.00027397,5]
[381478990,1756230672122,-400.0,0.00027397,5]
[381478991,1756230672131,-1033.23,0.00027397,5]
[381478992,1756230672140,-400.0,0.00027397,5]
[381478993,1756230672149,-479.173329,0.00027397,7]
[381478994,1756230672158,-479.173329,0.00027397,7]
[381478995,1756230672167,-181.105141,0.00027397,7]
[381478996,1756230672176,-583.42,0.00027397,5]
[381478997,1756230672185,-400.0,0.00027397,5]
[381478998,1756230672194,-479.173329,0.00027397,7]
[381478999,1756230672203,-181.105141,0.00027397,7]
[381479000,1756230672214,-1617.06,0.00027397,5]
[381479001,1756230672227,-479.173335,0.00027397,7]
[381479002,1756230672247,-400.0,0.00027397,5]
[381479003,1756230672260,-496.78,0.00027397,5]
[381479004,1756230672278,-181.105141,0.00027397,7]
[381479005,1756230672296,-400.0,0.00027397,5]
[381479006,1756230672315,-181.105145,0.00027397,7]
[381479007,1756230672335,-740.82,0.00027397,5]
[381479008,1756230672345,-400.0,0.00027397,5]
[381479009,1756230672355,-751.23,0.00027397,5]
[381479010,1756230672364,-1057.52,0.00027397,5]
[381479011,1756230672373,-571.51,0.00027397,5]
[381479012,1756230672382,-877.356607,0.00027397,7]
[381479013,1756230672391,-400.0,0.00027397,5]
[381479014,1756230672400,-400.0,0.00027397,5]
[381479015,1756230672409,-434.35,0.00027397,5]
[381479016,1756230672418,-400.0,0.00027397,5]
[381479017,1756230672428,-877.356607,0.00027397,7]
[381479018,1756230672437,-752.52,0.00027397,5]
[381479019,1756230672446,-400.0,0.00027397,5]
[381479020,1756230672456,-877.356607,0.00027397,7]
[381479021,1756230672466,-400.0,0.00027397,5]
[381479022,1756230672475,-1288.56,0.00027397,5]
[381479023,1756230672484,-400.0,0.00027397,5]
[381479024,1756230672493,-1749.23,0.00027397,5]
[381479025,1756230672503,-400.0,0.00027397,5]
[381479026,1756230672512,-877.356606,0.00027397,7]
[381479027,1756230672521,-1512.96,0.00027397,5]
[381479028,1756230672530,-400.0,0.00027397,5]
[381479029,1756230672540,-1076.61,0.00027397,5]
[381479030,1756230672549,-400.0,0.00027397,5]
[381479031,1756230672558,-151.0,0.00027397,7]
[381479032,1756230672568,-4628.51,0.00027397,5]
[381479033,1756230672577,-400.0,0.00027397,5]
[381479034,1756230672586,-485.34,0.00027397,5]
[381479035,1756230672595,-400.0,0.00027397,5]
[381479036,1756230672605,-546.54,0.00027397,5]
[381479037,1756230672614,-1309.38,0.00027397,5]
[381479038,1756230672623,-401.77566012,0.00027397,5]
[381479039,1756230672633,-400.0,0.00027397,5]
[381479040,1756230672646,-431.25,0.00027397,5]
[381479041,1756230672655,-400.56018969,0.00027397,5]
[381479042,1756230672664,-875.95,0.00027397,5]
[381479043,1756230672674,-403.76953701,0.00027397,5]
[381479044,1756230672686,-1567.59,0.00027397,5]
[381479045,1756230672697,-2458.03,0.00027397,5]
[381479046,1756230672706,-1637.37,0.00027397,5]
[381479047,1756230672716,-400.0,0.00027397,5]
[381479048,1756230672726,-805.91,0.00027397,5]
[381479049,1756230672736,-875.76,0.00027397,5]
[381479050,1756230672746,-400.0,0.00027397,5]
[381479051,1756230672755,-1335.44,0.00027397,5]
[381479052,1756230672765,-813.45,0.00027397,5]
[381479053,1756230672774,-400.81664924,0.00027397,5]
[381479054,1756230672784,-400.0,0.00027397,5]
[381479055,1756230672793,-400.0,0.00027397,5]
[381479056,1756230672803,-776.37,0.00027397,5]
[381479057,1756230672814,-440.79,0.00027397,5]
[381479058,1756230672824,-400.0,0.00027397,5]
[381479059,1756230672834,-1213.81,0.00027397,5]
[381479060,1756230672843,-937.37,0.00027397,5]
[381479061,1756230672853,-400.0,0.00027397,5]
[381479062,1756230672863,-231.183159,0.00027397,7]
[381479063,1756230672872,-500.0,0.00027397,5]
[381479064,1756230672881,-151.0,0.00027397,7]
[381479065,1756230672891,-231.183159,0.00027397,7]
[381479066,1756230672900,-400.0,0.00027397,5]
[381479067,1756230672910,-231.183159,0.00027397,7]
[381479068,1756230672920,-400.0,0.00027397,5]
[381479069,1756230672931,-686.49,0.00027397,5]
[381479070,1756230672940,-400.0,0.00027397,5]
[381479071,1756230672950,-713.94,0.00027397,5]
[381479072,1756230672959,-231.18315,0.00027397,7]
[381479073,1756230672969,-862.64,0.00027397,5]
[381479074,1756230672978,-922.13,0.00027397,5]
[381479075,1756230672987,-400.0,0.00027397,5]
[381479076,1756230672996,-400.0,0.00027397,5]
[381479077,1756230673006,-151.0,0.00027397,7]
[381479078,1756230673015,-842.8,0.00027397,5]
[381479079,1756230673025,-1109.71,0.00027397,5]
[381479080,1756230673035,-400.0,0.00027397,5]
[381479081,1756230673043,-400.0,0.00027397,5]
[381479082,1756230673053,-509.97265723,0.00027397,5]
[381479083,1756230673063,-151.0,0.00027397,7]
[381479084,1756230673073,-398.543838,0.00027397,7]
[381479085,1756230673082,-400.0,0.00027397,5]
[381479086,1756230673092,-400.0,0.00027397,5]
[381479087,1756230673101,-398.543838,0.00027397,7]
[381479088,1756230673110,-400.0,0.00027397,5]
[381479089,1756230673121,-400.0,0.00027397,5]
[381479090,1756230673131,-537.55,0.00027397,5]
[381479091,1756230673140,-400.0,0.00027397,5]
[381479092,1756230673150,-159.652401,0.00027397,7]
[381479093,1756230673159,-398.543838,0.00027397,7]
[381479094,1756230673169,-400.0,0.00027397,5]
[381479095,1756230673180,-996.63,0.00027397,5]
[381479096,1756230673190,-159.652401,0.00027397,7]
[381479097,1756230673199,-1260.94,0.00027397,5]
[381479098,1756230673209,-398.543847,0.00027397,7]
[381479099,1756230673219,-400.0,0.00027397,5]
[381479100,1756230673229,-159.652401,0.00027397,7]
[381479101,1756230673239,-400.0,0.00027397,5]
[381479102,1756230673249,-153.995177,0.00027397,7]
[381479103,1756230673259,-400.0,0.00027397,5]
[381479104,1756230673270,-159.652398,0.00027397,7]
[381479105,1756230673279,-980.95,0.00027397,5]
[381479106,1756230673289,-400.20460055,0.00027397,5]
[381479107,1756230673300,-1760.66,0.00027397,5]
[381479108,1756230673310,-153.995177,0.00027397,7]
[381479109,1756230673319,-410.02,0.00027397,5]
[381479110,1756230673328,-400.0,0.00027397,5]
[381479111,1756230673338,-151.0,0.00027397,7]
[381479112,1756230673348,-400.0,0.00027397,5]
[381479113,1756230673357,-153.995177,0.00027397,7]
[381479114,1756230673367,-400.0,0.00027397,5]
[381479115,1756230673376,-151.0,0.00027397,7]
[381479116,1756230673386,-400.0,0.00027397,5]
[381479117,1756230673396,-400.0,0.00027397,5]
[381479118,1756230673405,-153.99517195,0.00027397,7]
[381479119,1756230673415,-886.79,0.00027397,5]
[381479120,1756230673427,-151.0,0.00027397,7]
[381479121,1756230673436,-400.0,0.00027397,5]
[381479122,1756230673446,-400.0,0.00027397,5]
[381479123,1756230673456,-400.0,0.00027397,5]
[381479124,1756230673466,-151.0,0.00027397,7]
[381479125,1756230673475,-151.0,0.00027397,7]
[381479126,1756230673486,-1351.73,0.00027397,5]
[381479127,1756230673495,-400.0,0.00027397,5]
[381479128,1756230673504,-400.0,0.00027397,5]
[381479129,1756230673515,-400.0,0.00027397,5]
[381479130,1756230673525,-400.0,0.00027397,5]
[381479131,1756230673535,-457.01,0.00027397,5]
[381479132,1756230673547,-400.0,0.00027397,5]
[381479133,1756230673557,-933.82,0.00027397,5]
[381479134,1756230673567,-400.0,0.00027397,5]
[381479135,1756230673578,-400.0,0.00027397,5]
[381479136,1756230673589,-1161.18,0.00027397,5]
[381479137,1756230673599,-151.0,0.00027397,7]
[381479138,1756230673609,-400.0,0.00027397,5]
[381479139,1756230673620,-151.0,0.00027397,7]
[381479140,1756230673630,-400.0,0.00027397,5]
[381479141,1756230673644,-1427.19,0.00027397,5]
[381479142,1756230673655,-151.0,0.00027397,7]
[381479143,1756230673665,-1778.67,0.00027397,5]
[381479144,1756230673675,-504.23,0.00027397,5]
[381479145,1756230673685,-400.0,0.00027397,5]
[381479146,1756230673695,-400.0,0.00027397,5]
[381479147,1756230673704,-763.04,0.00027397,5]
[381479148,1756230673714,-160.713247,0.00027397,7]
[381479149,1756230673726,-626.61,0.00027397,5]
[381479150,1756230673737,-400.0,0.00027397,5]
[381479151,1756230673747,-400.0,0.00027397,5]
[381479152,1756230673756,-595.35,0.00027397,5]
[381479153,1756230673766,-659.0,0.00027397,5]
[381479154,1756230673776,-1212.24,0.00027397,5]
[381479155,1756230673787,-400.26030062,0.00027397,5]
[381479156,1756230673797,-400.0,0.00027397,2]
[381479157,1756230673807,-400.0,0.00027397,5]
[381479158,1756230673816,-400.0,0.00027397,5]
[381479159,1756230673826,-400.0,0.00027397,5]
[381479160,1756230673835,-1136.12,0.00027397,5]
[381479161,1756230673846,-400.0,0.00027397,5]
[381479162,1756230673856,-400.0,0.00027397,5]
[381479163,1756230673865,-400.0,0.00027397,5]
[381479164,1756230673877,-400.0,0.00027397,5]
[381479165,1756230673886,-1388.02,0.00027397,5]
[381479166,1756230673896,-400.0,0.00027397,5]
[381479167,1756230673906,-851.42,0.00027397,5]
[381479168,1756230673916,-790.48,0.00027397,5]
[381479169,1756230673926,-424.81,0.00027397,5]
[381479170,1756230673936,-1031.7,0.00027397,5]
[381479171,1756230673946,-400.0,0.00027397,5]
[381479172,1756230673956,-978.35,0.00027397,5]
[381479173,1756230673966,-400.0,0.00027397,5]
[381479174,1756230673977,-400.0,0.00027397,5]
[381479175,1756230673987,-835.03,0.00027397,5]
[381479176,1756230673998,-151.0,0.00027397,7]
[381479177,1756230674007,-400.0,0.00027397,5]
[381479178,1756230674017,-868.774122,0.00027397,7]
[381479179,1756230674028,-686.76,0.00027397,5]
[381479180,1756230674040,-400.0,0.00027397,5]
[381479181,1756230674051,-1326.59,0.00027397,5]
[381479182,1756230674062,-1052.63,0.00027397,5]
[381479183,1756230674073,-400.0,0.00027397,5]
[381479184,1756230674083,-400.0,0.00027397,5]
[381479185,1756230674093,-868.774122,0.00027397,7]
[381479186,1756230674103,-463.9,0.00027397,5]
[381479187,1756230674113,-400.0,0.00027397,5]
[381479188,1756230674123,-441.77,0.00027397,5]
[381479189,1756230674133,-868.774122,0.00027397,7]
[381479190,1756230674143,-1026.11,0.00027397,5]
[381479191,1756230674152,-868.774122,0.00027397,7]
[381479192,1756230674163,-400.0,0.00027397,5]
[381479193,1756230674173,-400.0,0.00027397,5]
[381479194,1756230674185,-510.24,0.00027397,5]
[381479195,1756230674195,-400.0,0.00027397,5]
[381479196,1756230674206,-400.41215319,0.00027397,5]
[381479197,1756230674216,-400.0,0.00027397,5]
[381479198,1756230674227,-400.0,0.00027397,5]
[381479199,1756230674238,-400.0,0.00027397,5]
[381479200,1756230674248,-1032.18,0.00027397,5]
[381479201,1756230674259,-1025.85,0.00027397,5]